bitfinex/quotes_ETHUSD_20251024
["timestamp","ask_amount","ask_price","bid_price","bid_amount"]
[1761305841714,1e-08,3944.4,3944.3,3.0421841]
[1761305841920,1e-08,3944.4,3944.3,5.0368841]
[1761305843112,1e-08,3944.4,3944.3,9.15299978]
[1761305843331,1e-08,3944.4,3944.3,9.94451016]
[1761305843957,1e-08,3944.4,3944.3,6.13451016]
[1761305844970,1e-08,3944.4,3944.3,5.38889448]
[1761305845965,1e-08,3944.4,3944.3,5.82839448]
[1761305846549,1e-08,3944.4,3944.3,5.38889448]
[1761305846755,1e-08,3944.4,3944.3,5.82839448]
[1761305847259,1e-08,3944.4,3944.3,5.95479448]
[1761305848050,0.5043,3945.9,3945.8,3.04122031]
[1761305848383,0.5043,3945.9,3944.7,0.50688]
[1761305848384,0.4432,3945.8,3944.7,0.50688]
[1761305848551,0.4432,3945.8,3945.7,2.53440454]
[1761305854650,0.5043,3945.9,3945.7,2.53440454]
[1761305854651,0.3,3945.9,3945.8,2.53434031]
[1761305854843,0.3,3945.9,3945.8,4.84986591]
[1761305855525,0.3,3945.9,3945.8,5.35674591]
[1761305855823,1e-08,3945.9,3945.8,5.35674591]
[1761305856214,0.76240001,3946.2,3946.1,2.53414763]
[1761305856538,0.76240001,3946.2,3946.1,4.08934763]
[1761305856702,0.76240001,3946.2,3946.1,5.33461761]
[1761305856703,0.29920001,3946.2,3946.1,5.33461761]
[1761305858016,0.29920001,3946.2,3946.1,5.46101761]
[1761305860426,0.301,3946.3,3946.2,4.59616342]
[1761305860427,1e-08,3946.3,3946.2,4.59616342]
[1761305860643,0.4647,3946.2,3945.1,0.1649]
[1761305860846,0.4647,3946.2,3945.0,2.53484278]
[1761305860847,0.6717,3946.2,3945.8,2.5343215]
[1761305861016,0.2082,3945.9,3945.8,2.53428591]
[1761305861439,0.6714,3945.9,3945.8,2.53428591]
[1761305863227,0.6714,3945.9,3945.7,2.53435586]
[1761305863544,0.4632,3945.8,3945.7,2.53440454]
[1761305866372,0.4632,3945.8,3943.9,5.07112248]
[1761305866522,0.4632,3945.8,3944.0,0.67077253]
[1761305866726,0.4632,3945.8,3943.8,0.002]
[1761305866727,0.4632,3945.8,3944.9,2.53490006]
[1761305867067,2.53454853,3945.5,3944.1,0.31980633]
[1761305867223,2.53454853,3945.5,3944.7,2.53498765]
[1761305867417,0.4645,3945.4,3944.2,2.53536838]
[1761305867653,0.4645,3945.4,3944.2,0.02535368]
[1761305867956,0.4645,3945.4,3944.9,2.5348722]
[1761305868119,0.4645,3945.4,3945.0,2.53484813]
[1761305868648,0.4645,3945.4,3945.1,2.53477708]
[1761305869561,0.4645,3945.4,3944.9,2.53491346]
[1761305869923,0.29989804,3945.3,3944.8,2.53496775]
[1761305870142,0.4645,3945.4,3944.1,4.09062082]
[1761305870143,0.4645,3945.4,3944.9,2.53490596]
[1761305870349,0.4645,3945.4,3945.3,2.53463115]
[1761305874831,0.3346,3945.9,3945.5,2.53451276]
[1761305875028,0.4645,3945.8,3945.6,2.53446659]
[1761305875930,0.4645,3945.8,3945.5,2.53451167]
[1761305876538,0.3346,3945.9,3945.2,0.1264]
[1761305876741,0.3346,3945.9,3945.6,2.53440906]
[1761305877069,1e-08,3946.3,3945.7,0.31980633]
[1761305877236,0.2102,3945.9,3944.9,0.002]
[1761305877430,2.53434153,3945.8,3944.9,0.002]
[1761305877641,2.53434153,3945.8,3945.0,2.53480114]
[1761305877642,0.96967331,3945.8,3945.0,2.53480114]
[1761305877971,0.96967331,3945.8,3944.9,0.002]
[1761305877972,2.53471603,3945.3,3944.9,0.002]
[1761305878266,2.53473213,3945.2,3944.9,0.002]
[1761305878428,0.4418,3945.1,3944.9,0.002]
[1761305878865,2.53485424,3945.0,3944.9,0.002]
[1761305879041,2.83251966,3945.0,3944.9,0.002]
[1761305879249,3.27431966,3945.0,3944.9,0.002]
[1761305879676,5.33639966,3945.0,3944.9,0.002]
[1761305879858,5.87748797,3945.0,3944.9,0.002]
[1761305880056,6.78527455,3945.0,3944.9,0.002]
[1761305880230,0.2278,3943.9,3942.3,0.002]
[1761305880430,4.09101843,3943.5,3942.3,0.002]
[1761305880669,2.53595691,3943.3,3942.3,0.002]
[1761305880836,2.53595691,3943.3,3942.3,2.53858454]
[1761305881069,2.53607567,3943.1,3942.3,0.002]
[1761305881483,2.98917567,3943.1,3942.3,0.002]
[1761305881684,3.54168893,3943.1,3942.3,0.002]
[1761305881881,0.4531,3943.1,3942.3,0.002]
[1761305882089,0.4531,3943.1,3942.4,2.53650531]
[1761305882302,0.4531,3943.1,3942.3,2.53858276]
[1761305882980,0.4531,3943.1,3942.7,2.53632965]
[1761305883181,0.4531,3943.1,3942.6,2.53638934]
[1761305883572,0.4531,3943.1,3942.3,0.002]
[1761305883876,0.4531,3943.1,3942.5,2.53645438]
[1761305884769,0.4531,3943.1,3942.3,0.002]
[1761305884975,0.4531,3943.1,3942.4,2.53652412]
[1761305885176,0.4531,3943.1,3942.4,2.53650429]
[1761305885797,0.4531,3943.1,3942.5,2.53644899]
[1761305886322,0.4531,3943.1,3942.3,2.53853134]
[1761305886488,0.4531,3943.1,3942.4,2.53650517]
[1761305886680,0.4531,3943.1,3942.5,2.53645329]
[1761305887101,0.5803,3943.1,3942.6,2.53638747]
[1761305887517,0.5803,3943.1,3942.7,2.53633283]
[1761305887871,0.5803,3943.1,3942.4,2.53652313]
[1761305887872,0.5803,3943.1,3942.6,2.53638657]
[1761305889098,0.2278,3943.9,3942.8,1.5552]
[1761305889297,0.2278,3943.9,3943.1,2.53607567]
[1761305889298,0.1264,3943.4,3943.1,2.53607567]
[1761305889684,0.5795,3943.4,3943.1,2.53607567]
[1761305890008,0.5795,3943.4,3943.2,2.53599319]
[1761305890382,0.1264,3943.4,3943.2,2.53599319]
[1761305890706,0.1264,3943.6,3943.5,2.53580903]
[1761305892103,0.3542,3943.9,3943.5,2.53580903]
[1761305892300,0.3542,3943.9,3943.6,2.53573847]
[1761305892301,0.8073,3943.9,3943.6,2.53573847]
[1761305892890,0.8073,3943.9,3943.3,2.66230038]
[1761305892891,0.3542,3943.9,3943.4,2.53585436]
[1761305893095,0.4531,3943.8,3943.4,2.53585436]
[1761305893477,0.4531,3943.8,3943.3,0.1264]
[1761305893682,0.4531,3943.8,3943.6,2.53573527]
[1761305894082,0.4531,3943.8,3943.5,2.53580389]
[1761305894887,0.4531,3943.8,3943.3,6.48231724]
[1761305895323,0.4531,3943.8,3943.5,2.53580154]
[1761305896484,0.4531,3943.8,3943.3,3.9464]
[1761305896685,0.1264,3943.5,3943.3,3.82]
[1761305897188,0.4531,3943.4,3943.3,3.82]
[1761305898319,3.30051453,3943.4,3943.3,3.82]
[1761305898506,0.76463179,3943.4,3943.3,3.82]
[1761305898683,0.4531,3943.4,3943.3,3.82]
[1761305899486,2.98898274,3943.4,3943.0,0.002]
[1761305899722,0.1272,3943.1,3943.0,0.002]
[1761305900089,2.53633296,3942.7,3942.6,0.002]
[1761305900291,2.53633296,3942.7,3941.6,0.078]
[1761305900292,2.74567643,3941.7,3941.6,0.078]
[1761305900489,4.75157643,3941.7,3941.6,0.078]
[1761305904095,4.75077643,3941.7,3941.6,0.078]
[1761305905987,3.19557643,3941.7,3941.6,0.078]
[1761305906521,3.76882315,3941.7,3941.6,0.078]
[1761305906828,1.23184672,3941.7,3941.6,0.078]
[1761305906992,2.53689664,3941.9,3941.6,0.078]
[1761305906993,0.2072,3942.0,3941.6,0.078]
[1761305907206,2.53689798,3941.9,3941.6,0.078]
[1761305907396,0.2072,3942.0,3941.6,0.078]
[1761305907724,4.0918593,3942.2,3941.6,0.078]
[1761305908112,0.70498933,3942.2,3941.6,0.078]
[1761305908313,2.5366658,3942.2,3941.6,0.078]
[1761305908515,0.4215,3942.4,3941.6,0.078]
[1761305908726,2.53647267,3942.5,3941.6,0.078]
[1761305908916,2.53652947,3942.4,3941.7,2.53697643]
[1761305909623,0.2028,3942.6,3941.6,0.078]
[1761305909827,0.2028,3942.6,3941.8,2.53686406]
[1761305910028,0.1272,3942.2,3941.8,2.53686406]
[1761305910395,0.1272,3942.2,3941.9,2.53684248]
[1761305910597,0.1272,3942.2,3941.8,2.53686763]
[1761305910799,0.1272,3942.2,3941.9,2.53681336]
[1761305911330,0.1272,3942.2,3942.0,2.53675182]
[1761305911633,0.2028,3942.9,3942.2,2.53660426]
[1761305911835,0.1272,3942.3,3942.2,2.53660426]
[1761305911999,0.1272,3942.5,3942.4,2.53648412]
[1761305912433,0.1272,3942.5,3942.4,2.98278412]
[1761305913114,0.001,3943.1,3942.8,2.53622449]
[1761305913420,0.1272,3942.9,3942.6,2.53635279]
[1761305913600,0.1272,3942.9,3942.7,2.53633248]
[1761305914130,0.1272,3942.9,3942.7,2.98203248]
[1761305914636,0.001,3943.1,3942.8,2.98196864]
[1761305914797,0.1272,3943.0,3942.8,0.4457]
[1761305914997,0.001,3943.1,3942.7,2.53631437]
[1761305915231,0.001,3943.1,3942.7,2.66351437]
[1761305915535,0.001,3943.1,3942.9,2.53620059]
[1761305915931,0.001,3943.1,3942.8,2.53626864]
[1761305916231,0.001,3943.1,3943.0,2.53613999]
[1761305916595,0.001,3943.1,3943.0,3.10067085]
[1761305916800,0.001,3943.1,3943.0,3.54637085]
[1761305918637,0.001,3943.1,3943.0,3.10067085]
[1761305918829,0.001,3943.1,3943.0,2.53613999]
[1761305919435,0.001,3943.1,3943.0,2.98183999]
[1761305920146,0.001,3943.1,3943.0,2.53613999]
[1761305922356,0.001,3943.1,3942.1,3.21498196]
[1761305922648,0.001,3943.1,3941.7,2.53691501]
[1761305922649,0.2255,3942.2,3941.7,2.53691501]
[1761305922826,0.2255,3942.2,3941.6,2.61698683]
[1761305923143,0.4393,3942.2,3941.6,2.61698683]
[1761305923542,0.4393,3942.2,3941.7,2.53695377]
[1761305923952,0.2255,3942.2,3941.7,2.53695377]
[1761305924124,0.2138,3942.1,3941.6,0.08]
[1761305924648,0.2138,3942.1,3941.6,2.6170233]
[1761305926745,0.1272,3941.9,3941.6,2.6170233]
[1761305927542,0.1272,3941.9,3941.7,2.53697613]
[1761305928149,0.1272,3941.9,3941.6,0.08]
[1761305928150,0.1264,3941.9,3941.6,0.08]
[1761305928457,0.1264,3941.9,3941.6,2.61703133]
[1761305929656,0.1264,3941.9,3941.7,2.53697336]
[1761305931053,0.1264,3941.9,3941.6,2.61701873]
[1761305931254,0.3409,3941.9,3941.6,0.08]
[1761305931555,0.1264,3941.9,3941.6,0.08]
[1761305931755,0.1264,3941.9,3941.7,2.53697063]
[1761305932452,0.2255,3942.2,3941.7,2.53697063]
[1761305932652,0.4401,3942.2,3941.7,2.53697063]
[1761305932835,0.4401,3942.2,3941.6,0.08]
[1761305933030,2.53655017,3942.4,3941.7,2.53697643]
[1761305933233,2.83420519,3942.4,3941.7,2.53697643]
[1761305933433,2.83420519,3942.4,3941.8,2.53689956]
[1761305933935,0.2254,3942.5,3941.7,0.4457]
[1761305934138,0.2147,3942.7,3942.1,2.53670498]
[1761305934745,2.75104721,3942.7,3942.0,2.536769]
[1761305935056,2.75104721,3942.7,3941.8,2.53691078]
[1761305935057,2.53621562,3942.9,3942.2,2.53661979]
[1761305935257,3.0047975,3942.8,3942.1,2.53670419]
[1761305935457,2.53633759,3942.7,3942.1,2.53670419]
[1761305935756,2.75113759,3942.7,3942.1,2.53670419]
[1761305935929,0.2148,3942.7,3942.1,2.53670419]
[1761305938061,2.79001186,3942.8,3942.2,2.53663125]
[1761305938062,0.25372156,3942.8,3942.2,2.53663125]
[1761305938439,2.79000435,3942.8,3942.2,2.53663125]
[1761305938846,0.25372156,3942.8,3942.2,2.53663125]
[1761305940025,2.79000509,3942.8,3942.2,2.53663125]
[1761305940750,2.79000509,3942.8,3942.1,0.2361]
[1761305940751,0.25372156,3942.8,3942.1,0.2361]
[1761305940951,2.5366629,3942.2,3941.8,3.82]
[1761305941154,0.2148,3942.1,3941.6,2.61703092]
[1761305942358,0.1272,3941.8,3941.6,2.61703092]
[1761305942853,2.75119319,3942.7,3942.0,2.53675564]
[1761305943028,0.1272,3942.1,3942.0,2.53675564]
[1761305943635,0.1272,3942.1,3941.9,2.53682874]
[1761305944034,0.1272,3942.1,3942.0,2.53678335]
[1761305944533,0.1272,3942.3,3942.0,2.96468194]
[1761305944843,0.1272,3942.3,3942.2,2.53665465]
[1761305945663,0.1272,3942.3,3941.8,2.53685109]
[1761305945865,0.2148,3942.7,3942.2,2.53665465]
[1761305946066,0.1272,3942.5,3942.2,2.53665465]
[1761305946269,0.1272,3942.5,3942.3,2.53658511]
[1761305946474,0.1272,3942.5,3942.0,2.53678311]
[1761305946475,0.2148,3942.4,3942.0,2.53678311]
[1761305946633,0.1272,3942.2,3942.0,2.53678311]
[1761305946976,0.1272,3942.2,3942.1,2.536719]
[1761305947870,0.1272,3942.2,3942.1,2.964619]
[1761305948072,0.1272,3942.2,3942.1,3.54650494]
[1761305948375,0.001,3942.6,3942.3,2.53655894]
[1761305948782,0.1272,3942.4,3942.3,2.53655894]
[1761305949285,0.001,3942.6,3942.5,2.53646163]
[1761305949459,0.001,3942.6,3942.5,6.48366163]
[1761305949651,0.001,3942.6,3942.5,7.85637369]
[1761305950648,0.001,3942.6,3942.5,9.41157369]
[1761305952299,0.0002,3942.6,3942.5,9.41157369]
[1761305955274,0.0002,3942.6,3942.5,9.91845369]
[1761305960416,0.2152,3942.6,3942.0,3.82]
[1761305960616,0.0002,3942.6,3942.5,2.53646163]
[1761305961513,0.2153,3942.6,3942.5,2.53646163]
[1761305962490,0.0002,3942.6,3942.5,2.53646163]
[1761305965019,0.0002,3942.6,3942.5,2.53846163]
[1761305967598,0.0002,3942.6,3942.5,2.96636163]
[1761305968221,0.0002,3942.6,3942.5,2.53846163]
[1761305971039,0.0002,3942.6,3942.5,2.99006163]
[1761305971260,0.0002,3942.6,3942.5,3.93744184]
[1761305972021,0.0002,3942.6,3942.5,3.96280645]
[1761305973118,0.0002,3942.6,3942.5,3.93744184]
[1761305973816,0.0002,3942.6,3942.5,9.81952184]
[1761305974216,0.0002,3942.6,3942.5,9.36792184]
[1761305975341,0.0002,3942.6,3942.5,9.81952184]
[1761305976235,0.0004,3943.1,3943.0,4.09133999]
[1761305979714,0.0004,3943.1,3943.0,7.91133999]
[1761305983953,0.2005,3943.1,3943.0,6.35613999]
[1761305985734,0.2005,3943.1,3943.0,2.53613999]
[1761305987449,0.2005,3943.1,3942.9,2.53618212]
[1761305987652,0.3277,3943.1,3942.6,0.1272]
[1761305987825,0.3277,3943.1,3943.0,2.53613999]
[1761305988731,0.1276,3943.1,3943.0,2.53613999]
[1761305989252,0.3291,3943.1,3943.0,2.53613999]
[1761305991055,0.1276,3943.1,3943.0,2.53613999]
[1761305993329,0.3291,3943.1,3943.0,2.53613999]
[1761305996374,0.1276,3943.1,3943.0,2.53613999]
[1761305996760,0.1276,3943.1,3942.6,0.1272]
[1761305996761,0.3291,3943.1,3942.6,0.1272]
[1761305996949,0.2341,3942.7,3942.5,0.002]
[1761305997442,0.2018,3942.6,3942.5,2.53846163]
[1761305997644,0.2341,3942.7,3942.5,0.002]
[1761305997973,0.4359,3942.7,3942.6,2.5363973]
[1761306000273,0.1272,3942.9,3942.7,2.53630325]
[1761306000987,0.3393,3942.9,3942.8,2.53626864]
[1761306001199,0.1272,3942.9,3942.8,2.53626864]
[1761306001351,0.0004,3943.1,3943.0,2.53613999]
[1761306001550,0.0004,3943.1,3943.0,3.00783999]
[1761306001793,0.0004,3943.1,3943.0,3.13503999]
[1761306002669,0.0004,3943.1,3943.0,2.53613999]
[1761306002868,0.0004,3943.1,3943.0,3.77246457]
[1761306003176,0.0004,3943.1,3943.0,2.53613999]
[1761306004687,0.0004,3943.1,3943.0,3.00783999]
[1761306006367,0.0004,3943.1,3943.0,4.56303999]
[1761306006745,0.0004,3943.1,3943.0,5.06991999]
[1761306007490,0.0004,3943.1,3943.0,11.85328453]
[1761306007654,0.0004,3943.1,3943.0,13.63932356]
[1761306007990,0.001,3943.5,3943.0,9.81932356]
[1761306008152,0.001,3943.5,3943.4,7.24884728]
[1761306008348,0.001,3943.5,3943.4,5.26406274]
[1761306008586,0.001,3943.5,3943.4,8.22742728]
[1761306008788,0.001,3943.5,3943.4,9.30377114]
[1761306012707,0.001,3943.5,3943.4,9.43017114]
[1761306014810,0.001,3943.5,3943.4,9.35377114]
[1761306014973,0.001,3943.5,3943.4,9.43017114]
[1761306016977,0.001,3943.5,3943.4,8.92329114]
[1761306017208,0.001,3943.5,3943.4,9.43017114]
[1761306018142,0.001,3943.5,3943.4,8.95847114]
[1761306018338,0.2114,3943.5,3943.4,2.53588274]
[1761306019136,0.2114,3943.5,3943.0,0.002]
[1761306019296,0.2114,3943.5,3943.3,2.53588734]
[1761306019690,0.2114,3943.5,3943.4,2.53588274]
[1761306019958,0.001,3943.5,3943.4,2.53588274]
[1761306021390,0.2114,3943.5,3943.4,2.53588274]
[1761306022197,0.2114,3943.5,3943.3,2.53592052]
[1761306023321,0.2114,3943.5,3943.4,2.53588274]
[1761306023518,0.001,3943.5,3943.4,2.53588274]
[1761306024146,0.0002,3943.5,3943.4,2.53588274]
[1761306026539,0.0002,3943.5,3943.4,5.36630384]
[1761306028051,0.0002,3943.5,3943.4,5.87318384]
[1761306028249,0.0002,3943.5,3943.4,5.99958384]
[1761306032298,0.0002,3943.5,3943.4,5.52788384]
[1761306032670,0.0002,3943.5,3943.4,5.99968384]
[1761306034369,0.0002,3943.5,3943.4,6.29413285]
[1761306034600,0.001,3943.9,3943.8,2.53562553]
[1761306034800,0.001,3943.9,3943.8,7.81463262]
[1761306035003,0.001,3943.9,3943.8,8.41283262]
[1761306036421,0.001,3944.3,3944.2,3.04224838]
[1761306036584,0.001,3944.3,3944.2,7.68721292]
[1761306039295,0.001,3944.3,3944.2,11.12237746]
[1761306039501,0.001,3944.3,3944.2,12.76449593]
[1761306042315,0.001,3944.7,3944.6,3.04199129]
[1761306042623,0.001,3944.7,3944.6,7.71230694]
[1761306042798,0.001,3944.7,3944.6,8.15875583]
[1761306046304,0.001,3944.7,3944.6,7.68695583]
[1761306046512,0.001,3944.7,3944.6,8.75635026]
[1761306048115,0.001,3944.7,3944.6,12.57635026]
[1761306048337,0.0002,3944.7,3944.6,12.57635026]
[1761306050140,0.0002,3944.7,3944.6,13.04815026]
[1761306051518,0.2298,3944.7,3944.6,8.54359129]
[1761306051825,0.2298,3944.7,3944.6,2.53511129]
[1761306052606,0.2298,3944.7,3944.5,2.96336454]
[1761306052915,0.2298,3944.7,3944.6,2.53511129]
[1761306060306,0.0002,3944.7,3944.6,2.53511129]
[1761306061010,0.2298,3944.7,3944.6,2.53511129]
[1761306063010,0.0002,3944.7,3944.6,2.53511129]
[1761306063212,0.0002,3944.7,3944.6,3.81729051]
[1761306063415,0.0002,3944.7,3944.6,4.26629051]
[1761306064065,0.0002,3944.7,3944.6,3.81729051]
[1761306064708,0.0002,3944.7,3944.6,6.32837051]
[1761306064908,0.0002,3944.7,3944.6,6.3030194]
[1761306065142,0.0002,3944.7,3944.6,5.8540194]
[1761306065855,0.0002,3944.7,3944.6,9.6740194]
[1761306067142,0.0002,3944.7,3944.6,10.1230194]
[1761306068044,0.0002,3944.7,3944.6,13.22555154]
[1761306068664,0.0002,3944.7,3944.6,13.67455154]
[1761306070438,0.001,3945.1,3944.6,13.67455154]
[1761306070641,0.001,3945.1,3945.0,6.21278638]
[1761306070864,0.001,3945.1,3945.0,10.03278638]
[1761306071078,0.001,3945.1,3945.0,10.48178638]
[1761306072273,0.0002,3945.1,3945.0,10.48178638]
[1761306076862,0.0002,3945.1,3945.0,11.03866638]
[1761306077076,0.0002,3945.1,3945.0,12.27092666]
[1761306078764,0.0002,3945.1,3945.0,13.82612666]
[1761306081967,0.0002,3945.1,3945.0,14.27512666]
[1761306082687,0.0002,3945.1,3945.0,13.82612666]
[1761306082861,0.2166,3945.1,3945.0,8.03645424]
[1761306083195,0.2166,3945.1,3945.0,8.54333424]
[1761306083393,0.2166,3945.1,3945.0,8.03645424]
[1761306083394,0.0002,3945.1,3945.0,8.03645424]
[1761306083798,0.0002,3945.1,3945.0,8.54333424]
[1761306085576,0.0002,3945.1,3945.0,10.4553141]
[1761306086401,0.0002,3945.1,3945.0,10.0063141]
[1761306088315,0.2168,3945.1,3945.0,8.54333424]
[1761306088715,0.0002,3945.1,3945.0,8.54333424]
[1761306090619,0.0002,3945.1,3945.0,8.99953424]
[1761306090781,0.0002,3945.1,3945.0,9.43258733]
[1761306091181,0.0002,3945.1,3945.0,8.68193832]
[1761306091397,0.0002,3945.1,3945.0,9.89377451]
[1761306092297,0.0002,3945.1,3945.0,10.34997451]
[1761306094589,0.0002,3945.1,3945.0,10.64442352]
[1761306094789,0.001,3945.5,3945.4,2.53459725]
[1761306095101,0.001,3945.5,3945.4,8.14820939]
[1761306095403,0.001,3945.5,3945.4,9.94864457]
[1761306096190,0.0002,3945.5,3945.4,9.94864457]
[1761306097815,1e-08,3946.3,3946.2,3.04096342]
[1761306098017,1e-08,3946.3,3946.2,11.96769556]
[1761306098891,1e-08,3946.3,3946.2,12.42389556]
[1761306099092,1e-08,3946.3,3946.2,13.94168123]
[1761306100098,1e-08,3946.3,3946.2,13.48548123]
[1761306100898,1e-08,3946.3,3946.2,13.61188123]
[1761306101429,0.19500001,3946.3,3946.2,13.61188123]
[1761306102019,1e-08,3946.3,3946.2,13.61188123]
[1761306103200,0.19500001,3946.3,3946.2,13.61188123]
[1761306105330,1e-08,3946.3,3946.2,13.61188123]
[1761306105905,0.19500001,3946.3,3946.2,13.61188123]
[1761306106110,1e-08,3946.3,3946.2,13.61188123]
[1761306106496,0.19500001,3946.3,3946.2,13.61188123]
[1761306107627,1e-08,3946.3,3946.2,13.61188123]
[1761306111833,0.19500001,3946.3,3946.2,13.61188123]
[1761306112005,0.19500001,3946.3,3946.2,12.09409556]
[1761306113417,0.19500001,3946.3,3946.2,11.46081556]
[1761306115961,0.19500001,3946.3,3946.2,2.53408342]
[1761306116753,0.19500001,3946.3,3946.0,2.53420671]
[1761306116754,0.19500001,3946.3,3946.0,2.53416033]
[1761306117043,0.1264,3946.1,3946.0,2.53416033]
[1761306117546,0.3214,3946.1,3946.0,2.53416033]
[1761306120313,0.3206,3946.1,3946.0,2.53416033]
[1761306122127,0.1256,3946.1,3946.0,2.53416033]
[1761306122326,1e-08,3946.3,3946.2,2.53408342]
[1761306122653,1e-08,3946.3,3946.2,5.49223258]
[1761306123548,0.19500001,3946.3,3946.2,5.49223258]
[1761306123747,1e-08,3946.3,3946.2,5.49223258]
[1761306124242,0.19500001,3946.3,3946.2,5.49223258]
[1761306124950,1e-08,3946.3,3946.2,5.49223258]
[1761306125150,1e-08,3946.3,3946.2,5.61863258]
[1761306128175,0.19040001,3946.3,3946.2,5.61863258]
[1761306130553,1e-08,3946.3,3946.2,5.61863258]
[1761306131150,0.19040001,3946.3,3946.2,5.61863258]
[1761306133277,1e-08,3946.3,3946.2,5.61863258]
[1761306134373,1e-08,3946.3,3946.2,9.43863258]
[1761306134987,1e-08,3946.3,3946.2,12.74131187]
[1761306137602,0.19040001,3946.3,3946.2,10.99383258]
[1761306138890,1e-08,3946.3,3946.2,10.99383258]
[1761306142101,1e-08,3946.3,3946.2,11.37431258]
[1761306142402,1e-08,3946.3,3946.2,11.93391258]
[1761306143596,1e-08,3946.3,3946.2,11.50071258]
[1761306143800,1e-08,3946.3,3946.2,12.92581987]
[1761306144305,0.00020001,3946.5,3946.4,2.53395499]
[1761306144672,0.00020001,3946.5,3946.4,2.66035499]
[1761306145376,0.00020001,3946.5,3946.4,3.09355499]
[1761306145579,0.00020001,3946.5,3946.4,3.60043499]
[1761306145888,0.00020001,3946.5,3946.4,5.18993248]
[1761306146398,0.00020001,3946.5,3946.4,9.00993248]
[1761306146897,0.00020001,3946.5,3946.4,3.9464]
[1761306147073,0.00020001,3946.5,3946.4,6.35395499]
[1761306147074,0.19060001,3946.5,3946.4,6.35395499]
[1761306147273,0.00020001,3946.5,3946.4,6.35395499]
[1761306147603,0.19060001,3946.5,3946.4,9.31210415]
[1761306149576,0.00020001,3946.5,3946.4,9.31210415]
[1761306149996,0.00020001,3946.5,3946.4,11.15932183]
[1761306151612,0.00020001,3946.5,3946.4,11.60662183]
[1761306153713,0.00020001,3946.5,3946.4,13.16182183]
[1761306153911,0.00020001,3946.5,3946.4,13.76224992]
[1761306154514,0.00020001,3946.5,3946.4,16.72039908]
[1761306154817,0.00020001,3946.5,3946.4,13.76224992]
[1761306155496,0.001,3946.7,3946.6,3.04070658]
[1761306155814,0.001,3946.7,3946.6,6.13932915]
[1761306156013,0.001,3946.7,3946.6,9.09747831]
[1761306156915,0.001,3946.7,3946.6,9.54477831]
[1761306157114,0.001,3946.7,3946.6,9.22387831]
[1761306157486,0.001,3946.7,3946.6,9.67117831]
[1761306157704,0.001,3946.7,3946.6,12.62932747]
[1761306158105,0.001,3946.7,3946.6,9.67117831]
[1761306158315,0.001,3946.7,3946.6,9.22387831]
[1761306158823,0.001,3946.7,3946.6,12.62932747]
[1761306158997,0.001,3946.7,3946.6,12.91530655]
[1761306159820,0.1906,3948.0,3947.7,2.53306943]
[1761306160019,0.1906,3948.0,3947.9,5.49114138]
[1761306160708,0.67821504,3949.7,3947.9,5.91629832]
[1761306160907,0.1855,3948.9,3948.5,2.95814916]
[1761306161096,0.29520274,3948.8,3947.9,3.08454916]
[1761306161305,2.71804211,3948.7,3947.9,5.49112983]
[1761306161504,0.1264,3948.0,3947.9,5.49112983]
[1761306161926,0.3119,3948.0,3947.9,5.49112983]
[1761306162296,0.1855,3948.7,3948.4,2.53267146]
[1761306162494,0.1264,3948.5,3948.4,2.53267146]
[1761306162694,0.3119,3948.5,3948.4,2.53267146]
[1761306163207,0.1264,3948.5,3948.4,2.53267146]
[1761306163425,0.1264,3948.7,3948.6,2.53253879]
[1761306163802,0.3119,3948.7,3948.6,2.53253879]
[1761306164407,0.3119,3948.7,3948.3,2.53273469]
[1761306164735,0.1855,3948.6,3948.2,5.61734049]
[1761306165032,0.1855,3948.6,3948.5,2.53260731]
[1761306166120,0.1855,3948.6,3947.9,0.50688]
[1761306166121,0.1855,3948.6,3947.9,3.46502916]
[1761306166327,0.1264,3948.5,3948.1,2.5328639]
[1761306166503,0.1264,3948.5,3948.3,2.53270288]
[1761306166833,0.1855,3948.4,3948.3,2.53270288]
[1761306167633,0.1855,3948.4,3948.1,6.3528639]
[1761306167634,0.1855,3948.4,3948.1,6.35284048]
[1761306167820,0.1855,3948.4,3948.1,3.82]
[1761306168022,0.1264,3948.2,3948.1,3.82]
[1761306168226,0.41005244,3948.2,3948.1,3.82]
[1761306168434,0.59555244,3948.2,3948.1,3.82]
[1761306169211,0.3111,3948.2,3948.1,3.82]
[1761306172032,2.84389975,3948.2,3948.1,3.82]
[1761306172727,0.3111,3948.2,3946.8,4.51334916]
[1761306172934,0.2206,3946.9,3946.8,0.1264]
[1761306173240,0.6319,3946.9,3946.8,2.53364611]
[1761306174212,0.5283,3947.2,3946.7,2.95814916]
[1761306174438,0.5283,3947.2,3947.1,2.53350561]
[1761306174624,0.1264,3947.2,3947.1,2.53350561]
[1761306174942,0.1264,3947.2,3947.0,2.53355158]
[1761306175141,0.1264,3947.2,3946.8,2.53369818]
[1761306175313,0.1741,3947.1,3947.0,2.53352823]
[1761306177229,0.1741,3947.1,3946.9,2.53361606]
[1761306177610,0.1741,3947.1,3947.0,2.53356979]
[1761306177927,0.1741,3947.1,3946.4,0.002]
[1761306178114,2.53371915,3946.8,3946.4,0.002]
[1761306178442,2.86981896,3947.0,3946.4,0.002]
[1761306178443,2.5336465,3946.9,3946.4,0.002]
[1761306178665,2.5336994,3946.8,3946.4,0.002]
[1761306178820,2.53377977,3946.7,3946.4,0.002]
[1761306179147,2.53389078,3946.5,3946.4,0.002]
[1761306179326,3.05813063,3946.5,3946.4,0.002]
[1761306179522,3.33423212,3946.5,3946.4,0.002]
[1761306180340,0.62564134,3946.5,3946.4,0.002]
[1761306180546,0.1747,3947.1,3946.4,0.002]
[1761306180749,0.1747,3947.1,3946.5,2.53388096]
[1761306180946,0.1747,3947.1,3946.4,2.5359444]
[1761306181119,2.70820616,3947.1,3946.4,0.002]
[1761306181315,0.29383062,3947.0,3946.4,0.002]
[1761306181557,0.46853062,3947.0,3946.4,0.002]
[1761306181724,0.1747,3946.9,3946.4,0.002]
[1761306184258,2.70834057,3946.9,3946.4,0.002]
[1761306185024,0.1747,3946.8,3946.4,0.002]